bitfinex-derivatives/quotes_ETHF0:USTF0_20250828
["timestamp","ask_amount","ask_price","bid_price","bid_amount"]
[1756346623071,0.3912,4522.6,4522.5,3.62205438]
[1756346623273,1.3695,4522.8,4522.7,1.75186]
[1756346623476,1.3695,4522.8,4522.7,2.04416]
[1756346624579,17.675,4522.9,4522.7,1.04316]
[1756346624786,17.675,4522.9,4522.8,3.853]
[1756346625283,17.675,4522.9,4522.8,4.854]
[1756346625478,31.859,4523.8,4522.8,4.854]
[1756346625479,0.3917,4523.4,4523.2,0.39792]
[1756346625678,1.3695,4523.4,4523.3,6.25501012]
[1756346626682,1.6765,4523.4,4523.3,4.854]
[1756346628483,1.3695,4523.4,4523.3,4.854]
[1756346628677,20.239,4523.5,4523.4,0.3979]
[1756346628877,1.0624,4523.7,4523.6,1.04308]
[1756346629082,21.9155,4523.7,4523.6,2.04408]
[1756346629489,1.3695,4523.7,4523.6,2.04408]
[1756346629683,1.0624,4523.7,4523.6,2.04408]
[1756346629883,1.3695,4523.7,4523.6,2.04408]
[1756346631587,1.6765,4523.7,4523.6,0.69508]
[1756346631784,0.8936,4523.5,4523.4,0.3979]
[1756346631986,1.3695,4523.5,4523.4,2.0441]
[1756346632185,21.2994,4523.5,4523.4,2.0441]
[1756346632788,21.6065,4523.5,4523.4,2.0441]
[1756346633092,21.9135,4523.5,4523.4,2.0441]
[1756346633495,1.6765,4523.5,4523.4,2.0441]
[1756346633686,21.9115,4523.5,4523.4,1.3403]
[1756346634491,21.9115,4523.5,4523.4,0.8913]
[1756346634790,21.6045,4523.5,4523.4,2.0441]
[1756346635296,1.3695,4523.5,4523.4,2.0441]
[1756346636292,1.6765,4523.5,4523.4,2.0441]
[1756346637797,1.6765,4523.5,4523.4,0.3979]
[1756346638098,20.8172,4523.5,4523.4,2.0441]
[1756346638395,21.9085,4523.5,4523.4,2.0441]
[1756346639394,21.9085,4523.5,4523.4,1.6326]
[1756346639591,21.9085,4523.5,4523.4,2.0441]
[1756346640698,21.9085,4523.5,4523.4,1.3403]
[1756346641397,21.9085,4523.5,4523.4,1.6326]
[1756346641799,1.6561,4523.4,4523.3,3.2078]
[1756346642496,1.6561,4523.4,4523.3,4.5895]
[1756346642697,0.5819,4523.7,4523.3,4.2066]
[1756346642888,0.9372,4523.7,4523.6,3.07331012]
[1756346643089,21.1672,4523.7,4523.6,3.07331012]
[1756346643293,21.8861,4523.7,4523.6,1.67068]
[1756346643595,1.6561,4523.4,4523.3,3.2078]
[1756346643794,21.8861,4523.4,4523.3,3.2078]
[1756346644999,21.8851,4523.4,4523.3,3.5165]
[1756346645293,21.8851,4523.4,4523.3,3.2078]
[1756346645694,1.6561,4523.0,4522.9,0.39794]
[1756346645899,21.8851,4523.0,4522.9,0.39794]
[1756346646500,21.8851,4523.0,4522.9,1.58924]
[1756346646692,21.8851,4523.0,4522.9,0.39794]
[1756346647097,21.8851,4523.0,4522.9,0.70664]
[1756346647695,27.50720012,4523.0,4522.1,3.5165]
[1756346647893,27.50720012,4523.0,4521.6,3.2078]
[1756346647894,0.4535,4521.7,4521.6,3.2078]
[1756346648093,21.8841,4521.7,4521.6,3.2078]
[1756346648294,0.5819,4521.6,4521.2,0.70679]
[1756346648598,1.6561,4521.3,4521.2,1.2728]
[1756346648793,0.2876,4521.2,4521.1,3.2078]
[1756346649101,0.6429,4520.7,4520.6,3.2078]
[1756346649296,21.8851,4520.7,4520.6,3.2078]
[1756346649802,1.0742,4520.2,4520.1,3.2078]
[1756346650101,21.8851,4520.2,4520.1,3.2078]
[1756346653800,21.8851,4520.2,4520.1,3.709]
[1756346654001,21.8851,4520.2,4520.1,4.19]
[1756346654295,21.8851,4520.2,4520.1,3.2078]
[1756346654501,21.8851,4520.2,4519.7,0.3087]
[1756346656401,1.6561,4519.5,4519.4,3.2078]
[1756346656598,21.8901,4519.5,4519.1,0.39827]
[1756346656804,1.6561,4519.0,4518.9,3.2078]
[1756346657004,21.8901,4519.0,4518.9,3.2078]
[1756346658897,21.8901,4519.0,4518.9,4.8801]
[1756346658898,20.236,4519.0,4518.9,4.8801]
[1756346659801,3.2078,4520.1,4518.9,4.2066]
[1756346659802,0.7256,4519.3,4518.9,4.2066]
[1756346660108,1.3685,4519.3,4519.2,1.6723]
[1756346660305,7.7635,4519.3,4519.2,1.6723]
[1756346660501,1.3685,4519.3,4519.2,1.6723]
[1756346660808,16.4699,4519.3,4519.2,1.6723]
[1756346661302,0.4313,4519.6,4519.5,0.6735]
[1756346661608,0.6429,4519.6,4519.5,3.07331012]
[1756346661811,21.6075,4519.8,4519.7,1.3636]
[1756346662106,21.6075,4519.8,4519.7,1.6723]
[1756346662500,21.8951,4519.8,4519.7,1.6723]
[1756346662698,21.8951,4519.8,4519.7,0.9822]
[1756346663000,21.8951,4519.8,4519.7,0.3087]
[1756346663408,20.8819,4519.8,4519.5,1.70971012]
[1756346663705,0.6429,4519.6,4519.4,3.2078]
[1756346663905,1.0742,4519.5,4519.4,0.3087]
[1756346664103,1.3685,4519.5,4519.4,3.07331012]
[1756346664307,1.0742,4519.5,4519.4,6.28111012]
[1756346664500,1.6561,4519.5,4519.4,4.19]
[1756346664700,1.6561,4519.5,4519.4,0.5012]
[1756346665297,1.6561,4519.5,4519.4,3.709]
[1756346665703,1.3685,4519.5,4519.4,4.8801]
[1756346665909,21.6095,4519.5,4519.4,4.8801]
[1756346666206,21.8971,4519.5,4519.4,4.8801]
[1756346668202,1.3685,4519.5,4519.4,4.8801]
[1756346668407,20.4308,4519.5,4519.4,4.8801]
[1756346668600,21.6105,4519.5,4519.4,4.8801]
[1756346669002,21.8981,4519.5,4519.4,4.8801]
[1756346669811,1.6561,4519.5,4519.4,4.8801]
[1756346670009,21.8981,4519.5,4519.4,4.8801]
[1756346670420,1.6561,4519.5,4519.4,4.8801]
[1756346670612,21.8981,4519.5,4519.4,4.8801]
[1756346672115,1.6561,4519.5,4519.4,4.8801]
[1756346672313,21.6105,4519.5,4519.4,4.8801]
[1756346672514,21.8898,4519.5,4519.4,4.8801]
[1756346673012,21.8898,4519.5,4519.4,4.4806]
[1756346673513,21.8898,4519.5,4519.4,4.19]
[1756346673913,21.8898,4519.5,4519.4,4.9129]
[1756346675210,21.8898,4519.5,4519.4,4.19]
[1756346676713,21.8898,4519.5,4519.4,3.709]
[1756346676913,1.6478,4519.5,4519.4,4.9109]
[1756346677115,21.8898,4519.5,4519.4,4.9109]
[1756346680713,1.6478,4519.5,4519.4,4.9109]
[1756346680911,21.8898,4519.5,4519.4,4.9109]
[1756346681217,21.8898,4519.5,4519.4,3.2078]
[1756346681810,21.8898,4519.5,4519.4,3.4997]
[1756346682911,21.8898,4519.5,4519.4,3.6887]
[1756346683211,21.8898,4519.5,4519.4,4.8906]
[1756346683818,21.8898,4519.5,4519.4,4.4627]
[1756346684209,22.43308917,4519.5,4519.4,3.4997]
[1756346685517,22.43308917,4519.5,4519.4,3.2078]
[1756346687409,22.43308917,4519.5,4519.4,3.4997]
[1756346688215,2.19108917,4519.5,4519.4,4.8906]
[1756346688421,22.43308917,4519.5,4519.4,4.8906]
[1756346688621,22.43308917,4519.5,4519.4,3.2078]
[1756346688920,22.43308917,4519.5,4519.4,3.4997]
[1756346689220,2.19108917,4519.5,4519.4,4.8906]
[1756346689418,22.43208917,4519.5,4519.4,4.8906]
[1756346689616,2.19108917,4519.5,4519.4,4.8906]
[1756346689819,22.43208917,4519.5,4519.4,4.8906]
[1756346690212,1.6478,4519.5,4519.4,4.8906]
[1756346690415,21.6095,4519.5,4519.4,4.8906]
[1756346691215,21.8888,4519.5,4519.4,4.8906]
[1756346692929,21.8888,4519.5,4519.4,4.4627]
[1756346693222,21.8888,4519.5,4519.4,3.2078]
[1756346693927,21.8888,4519.5,4519.4,3.4997]
[1756346694119,21.8888,4519.5,4519.4,3.2078]
[1756346696319,21.8878,4519.5,4519.4,3.2078]
[1756346697824,1.6478,4519.5,4519.4,4.5956]
[1756346698127,21.8878,4519.5,4519.4,4.8906]
[1756346699126,21.8868,4519.5,4519.4,4.8906]
[1756346699627,21.8868,4519.5,4519.4,4.4627]
[1756346699929,21.8868,4519.5,4519.4,3.4997]
[1756346701228,21.8868,4519.5,4519.4,3.2078]
[1756346701928,1.6478,4519.5,4519.4,4.8668]
[1756346702129,21.8868,4519.5,4519.4,4.8668]
[1756346702430,21.8868,4519.5,4519.4,3.2078]
[1756346703322,21.8868,4519.5,4517.4,3.94530065]
[1756346703323,0.6701,4518.3,4518.2,5.96951045]
[1756346703523,1.1799,4518.0,4517.9,1.97265032]
[1756346703824,1.1799,4518.0,4517.3,0.46704865]
[1756346703825,1.6597,4517.4,4517.3,0.17884865]
[1756346704022,1.6597,4517.3,4517.2,3.2078]
[1756346704824,1.6597,4516.8,4516.7,3.2078]
[1756346705029,21.8987,4516.8,4516.7,3.2078]
[1756346706025,1.6597,4516.8,4516.7,4.8668]
[1756346706225,3.9417,4516.8,4516.7,4.8668]
[1756346706830,3.9417,4516.8,4516.7,4.4579]
[1756346707027,3.9417,4516.8,4516.7,4.1697]
[1756346707531,3.9417,4516.8,4516.7,3.2078]
[1756346708824,1.6597,4516.8,4516.7,3.6895]
[1756346709128,5.0587,4516.8,4516.7,4.8668]
[1756346709627,5.0587,4516.8,4516.7,4.1697]
[1756346709929,5.0587,4516.8,4516.7,3.4943]
[1756346710426,5.0587,4516.8,4516.7,3.2078]
[1756346711024,5.0587,4516.8,4516.7,3.4943]
[1756346711325,5.0587,4516.8,4516.7,3.6878]
[1756346711833,5.0587,4516.8,4516.7,3.2078]
[1756346713724,0.7049,4516.7,4516.1,3.60634]
[1756346713927,1.6597,4516.2,4516.1,3.89284]
[1756346714325,1.6597,4516.2,4515.8,0.2882]
[1756346714628,4.80001012,4516.8,4515.8,0.48]
[1756346714629,1.6597,4515.9,4515.8,0.48]
[1756346714831,0.6701,4515.6,4515.5,0.7682]
[1756346715030,1.6597,4515.6,4515.5,0.7682]
[1756346715328,1.6597,4515.6,4515.5,1.659]
[1756346715931,1.6597,4515.6,4515.5,1.2501]
[1756346716133,0.2805,4515.5,4515.4,3.2078]
[1756346716338,1.6597,4515.5,4515.4,3.2078]
[1756346716839,1.6597,4515.5,4515.4,3.6878]
[1756346717034,0.4244,4515.5,4515.4,4.8668]
[1756346717337,0.905,4515.7,4515.6,0.9619]
[1756346717637,0.905,4515.7,4515.6,1.659]
[1756346717832,1.1001,4515.7,4515.6,1.659]
[1756346718036,1.375,4516.1,4516.0,0.857]
[1756346718333,1.375,4516.1,4515.6,0.39858]
[1756346718334,0.6701,4515.9,4515.8,0.2865]
[1756346718630,0.6701,4515.9,4515.8,0.7682]
[1756346718631,1.6597,4515.9,4515.8,0.7682]
[1756346718824,1.6597,4515.9,4515.8,1.659]
[1756346719632,1.375,4515.6,4515.5,0.87859]
[1756346719936,1.6597,4515.6,4515.5,2.05759]
[1756346720932,0.9896,4515.5,4515.4,3.2078]
[1756346721134,0.7555,4515.1,4515.0,0.2865]
[1756346721336,1.0945,4515.1,4515.0,1.659]
[1756346721544,0.391,4515.1,4515.0,1.659]
[1756346722038,1.0945,4515.1,4515.0,1.659]
[1756346722539,1.3792,4515.1,4515.0,1.659]
[1756346722836,1.6597,4515.1,4515.0,1.659]
[1756346723027,1.0945,4515.1,4515.0,1.659]
[1756346723231,0.6701,4515.1,4515.0,1.659]
[1756346724034,1.3792,4515.4,4515.3,1.659]
[1756346724338,1.3792,4516.1,4516.0,1.0843]
[1756346724533,0.905,4516.4,4516.3,1.659]
[1756346724734,1.6597,4516.4,4516.3,1.2501]
[1756346725140,1.3792,4516.7,4516.6,2.0575]
[1756346725340,0.6701,4516.7,4516.6,2.0575]
[1756346726740,0.6701,4516.7,4516.6,3.45851012]
[1756346726940,0.6701,4516.7,4516.6,2.0575]
[1756346728045,21.6432,4517.0,4516.9,2.05747]
[1756346728238,3.2078,4517.2,4517.1,0.39845]
[1756346728541,1.3792,4517.8,4517.7,1.659]
[1756346729345,1.6597,4517.8,4517.7,1.659]
[1756346729539,1.3792,4517.8,4517.7,1.659]
[1756346729942,1.3792,4518.3,4518.2,2.05736]
[1756346730946,1.0945,4518.3,4518.2,2.05736]
[1756346731741,20.7215,4518.3,4518.2,2.05736]
[1756346732242,20.2971,4518.3,4518.2,2.05736]
[1756346732747,20.9908,4518.3,4518.2,2.05736]
[1756346733043,20.273,4518.4,4518.2,5.26516]
[1756346733244,1.3566,4519.2,4519.1,0.6769]
[1756346733443,20.9349,4519.7,4519.6,0.59423]
[1756346733642,21.6286,4519.7,4519.6,2.03603]
[1756346734048,3.42724977,4520.4,4520.3,2.03597]
[1756346734049,0.4016,4520.4,4520.3,2.03597]
[1756346734243,0.4675,4520.7,4520.6,0.39814]
[1756346734446,1.3566,4520.7,4520.6,2.03594]
[1756346736044,1.6487,4520.7,4520.6,1.6378]
[1756346736238,1.6487,4520.7,4520.6,1.2447]
[1756346736951,21.9407,4520.7,4520.6,1.2447]
[1756346737451,21.9407,4520.7,4520.6,0.965]
[1756346737646,21.9367,4520.7,4520.6,0.965]
[1756346738351,21.9367,4520.7,4520.6,1.6378]
[1756346738546,0.2652,4520.7,4520.6,1.6378]
[1756346738753,31.888,4520.8,4520.7,2.03593]
[1756346738945,52.171,4520.8,4520.7,2.03593]
[1756346740849,31.888,4520.8,4520.7,2.03593]
[1756346741043,52.166,4520.8,4520.7,2.03593]
[1756346741448,53.8147,4520.8,4520.7,2.03593]
[1756346741942,53.8147,4520.8,4520.7,1.64283]
[1756346742451,53.8147,4520.8,4520.7,2.03593]
[1756346742650,31.888,4520.8,4520.7,2.03593]
[1756346742950,52.162,4520.8,4520.7,2.03593]
[1756346743253,31.888,4520.8,4520.7,2.03593]
[1756346743452,52.16,4520.8,4520.7,2.03593]
[1756346743842,20.272,4520.8,4520.7,2.03593]
[1756346744046,0.6629,4521.1,4521.0,2.03591]
[1756346744249,1.3566,4521.4,4521.3,2.03588]
[1756346744451,8.3916,4521.4,4521.3,2.03588]
[1756346744861,0.6629,4521.8,4521.7,0.6769]
[1756346745049,21.6306,4521.8,4521.7,1.6378]
[1756346745353,1.6487,4521.8,4521.7,2.03585]
[1756346745653,21.9237,4521.8,4521.7,2.03585]
[1756346746161,21.6286,4521.8,4521.7,2.03585]
[1756346746955,21.6286,4521.8,4521.7,1.6378]
[1756346747154,21.9207,4521.8,4521.7,1.6378]
[1756346747351,1.3566,4521.8,4521.7,1.6378]
[1756346747548,21.6266,4521.8,4521.7,1.6378]
[1756346749652,21.6186,4521.8,4521.7,1.6378]
[1756346750357,1.6487,4521.8,4521.7,1.6378]
[1756346750554,20.6606,4521.8,4521.7,1.6378]
[1756346750950,21.3235,4521.8,4521.7,1.6378]
[1756346751156,21.6156,4521.8,4521.7,1.6378]
[1756346751356,21.6146,4521.8,4521.7,1.6378]
[1756346751953,21.9067,4521.8,4521.7,1.6378]
[1756346755561,1.6487,4521.8,4521.7,1.6378]
[1756346755761,21.8907,4521.8,4521.7,1.6378]
[1756346756358,1.6487,4521.7,4521.6,0.39805]
[1756346756664,21.5966,4521.7,4521.6,2.03585]
[1756346757056,21.8887,4521.7,4521.6,2.03585]
[1756346757457,1.6487,4521.7,4521.6,2.03585]
[1756346757758,21.8867,4521.7,4521.6,2.03585]
[1756346759068,21.8807,4521.7,4521.6,2.03585]
[1756346760571,21.8807,4521.7,4521.6,1.6378]
[1756346760869,21.8807,4521.7,4521.6,1.2447]
[1756346761072,21.8807,4521.7,4521.6,0.965]
[1756346761673,20.8949,4521.7,4521.5,3.2078]
[1756346761873,1.6755,4521.6,4521.5,3.4975]
[1756346762175,1.3851,4521.6,4521.5,6.28875454]
[1756346762378,1.9379801,4521.6,4521.5,6.28875454]
[1756346762867,0.9494801,4521.6,4521.5,6.28875454]
[1756346763178,20.8912,4522.3,4522.2,2.0799]
[1756346763475,0.2904,4522.7,4522.3,1.6819]
[1756346763476,20.231,4522.4,4522.3,1.6819]
[1756346763677,20.78432914,4522.4,4522.3,1.6819]
[1756346764275,1.6755,4523.1,4523.0,2.07983]
[1756346764475,22.45889093,4523.1,4523.0,6.68668454]
[1756346765975,22.16849093,4523.1,4523.0,6.68668454]
[1756346766177,21.6161,4523.1,4523.0,6.68668454]
[1756346766370,21.9065,4523.1,4523.0,6.68668454]
[1756346767070,1.6755,4523.1,4523.0,6.68668454]
[1756346767269,21.9045,4523.1,4523.0,6.68668454]
[1756346767780,21.9045,4523.1,4523.0,6.28875454]
[1756346767966,2.2275489,4523.1,4523.0,6.28875454]
[1756346768171,22.4565489,4523.1,4523.0,4.60685454]
[1756346768772,22.4565489,4523.1,4523.0,5.09055454]
[1756346769080,22.4565489,4523.1,4523.0,4.60685454]
[1756346769880,22.4545489,4523.1,4523.0,4.60685454]
[1756346770075,22.4545489,4523.1,4523.0,3.2078]
[1756346770674,26.4545489,4523.1,4523.0,3.2078]
[1756346770873,1.0192,4522.6,4522.5,3.6915]
[1756346771073,21.4162489,4522.6,4522.5,4.8897]
[1756346771273,20.226,4522.6,4522.5,4.8897]
[1756346772384,20.4241,4522.6,4522.5,4.8897]
[1756346772575,21.2452,4522.6,4522.5,4.8897]
[1756346772775,21.0121,4522.6,4522.5,4.8897]
[1756346773277,20.8051,4522.6,4522.5,4.8897]
[1756346773484,21.2452,4522.6,4522.5,6.28875454]
[1756346774182,20.226,4522.6,4522.5,6.28875454]
[1756346774380,0.4401,4522.9,4522.5,6.28875454]
[1756346774583,20.8051,4522.9,4522.8,0.668]
[1756346774782,21.79756531,4522.9,4522.8,1.6819]
[1756346775278,21.79756531,4522.9,4522.8,2.07985]
[1756346775577,21.79756531,4522.9,4522.8,0.68765]
[1756346775784,21.88996531,4522.9,4522.8,0.39795]
[1756346776382,1.0192,4522.7,4522.6,0.39796]
[1756346776578,1.1116,4522.6,4522.5,3.2078]
[1756346776779,1.57165261,4522.6,4522.5,6.09215454]
[1756346776980,1.0192,4522.6,4522.5,6.28875454]
[1756346777777,0.1981,4523.1,4523.0,0.86933]
[1756346777984,21.2442,4523.1,4523.0,1.15903]
[1756346778288,21.79670227,4523.1,4523.0,5.28763]
[1756346778786,1.57170227,4523.1,4523.0,5.28763]
[1756346779392,1.0192,4523.1,4523.0,5.28763]
[1756346781393,0.5791,4523.5,4523.4,0.3979]
[1756346781594,21.79571132,4523.5,4523.4,1.0659]
[1756346782092,21.79571132,4523.5,4523.4,2.0798]
[1756346782390,21.3356,4523.5,4523.4,0.2897]
[1756346782983,21.2432,4523.5,4523.4,0.7611]
[1756346783184,21.2432,4523.5,4523.4,1.4853]
[1756346783986,1.0192,4523.5,4523.4,1.4853]
[1756346784293,21.2422,4523.5,4523.4,0.7611]
[1756346785088,21.3346,4523.5,4523.4,0.2897]
[1756346787989,1.1116,4523.4,4523.3,0.6876]
[1756346788189,21.2412,4523.4,4523.3,0.8816]
[1756346788596,21.2412,4523.4,4523.3,1.159]
[1756346788797,1.0192,4523.4,4523.3,2.0798]
[1756346789200,21.2402,4523.4,4523.3,2.0798]
[1756346791495,21.3326,4523.4,4523.3,0.6876]
[1756346791889,21.3326,4523.4,4523.3,0.2897]
[1756346792093,0.5733,4523.2,4523.1,0.69422]
[1756346792296,1.1149,4523.2,4523.1,0.69422]
[1756346793003,1.022,4523.2,4523.1,0.88802]
[1756346793196,1.022,4523.2,4523.1,1.57532]
[1756346793400,1.022,4523.2,4523.1,1.86312]
[1756346793599,1.1149,4523.2,4523.1,0.39792]
[1756346793901,1.022,4523.2,4523.1,1.16202]
[1756346794099,21.242,4523.2,4523.1,2.05882]
[1756346794692,21.242,4523.2,4523.1,1.35772]
[1756346794896,21.3349,4523.2,4523.0,3.2078]
[1756346795096,1.1149,4523.1,4523.0,3.2078]
[1756346795495,1.1149,4523.1,4523.0,3.5041]
[1756346795695,1.1149,4523.1,4523.0,3.2078]
[1756346796098,1.1149,4523.1,4523.0,3.5041]
[1756346796800,1.1149,4523.1,4523.0,3.2078]
[1756346797403,1.1149,4523.1,4523.0,3.5041]
[1756346797605,1.022,4523.1,4523.0,3.6979]
[1756346798104,1.1149,4523.1,4523.0,3.6979]
[1756346798805,1.022,4523.1,4523.0,3.6979]
[1756346799006,21.3349,4523.1,4523.0,3.5041]
[1756346799603,21.242,4523.1,4523.0,4.8687]
[1756346799800,0.6376,4523.1,4523.0,4.8687]
[1756346800102,20.4089,4523.1,4523.0,4.8687]
[1756346800305,20.22,4523.1,4523.0,4.8687]
[1756346800897,20.8576,4523.1,4523.0,4.8687]
[1756346801094,0.0929,4523.8,4523.1,0.99482]
[1756346801295,21.241,4523.7,4523.6,1.06138]
[1756346801598,21.241,4523.7,4523.6,2.05878]
[1756346801804,21.241,4523.7,4523.6,0.69418]
[1756346802001,0.3044,4524.9,4523.7,0.4133]
[1756346802202,1.58975609,4525.8,4525.7,2.05859]
[1756346802406,0.4933,4526.5,4526.2,0.39765]
[1756346802702,0.3044,4526.1,4526.0,0.81096]
[1756346802902,0.684,4526.1,4526.0,5.37180807]
[1756346803096,0.684,4526.1,4526.0,5.56750807]
[1756346803407,0.684,4526.1,4526.0,3.5041]
[1756346803594,0.684,4526.1,4526.0,4.8687]
[1756346803793,0.684,4526.4,4526.3,1.06114]
[1756346803999,7.12,4526.4,4526.3,1.64524]
[1756346804203,7.3859,4526.4,4526.3,1.64524]
[1756346804507,7.3859,4526.4,4526.3,1.06114]
[1756346804707,7.3859,4526.4,4526.3,0.39764]
[1756346805004,0.9499,4526.1,4526.0,3.60547]
[1756346805707,0.9499,4526.1,4526.0,4.17577]
[1756346806103,0.9499,4526.1,4526.0,5.26637]
[1756346808006,0.9499,4526.1,4526.0,3.60547]
[1756346808207,0.4566,4526.1,4526.0,5.26637]
[1756346808403,0.9499,4526.1,4526.0,5.26637]
[1756346808602,0.9499,4526.1,4526.0,3.2078]
[1756346809105,0.9499,4526.1,4526.0,3.60547]
[1756346809501,0.9499,4526.1,4526.0,3.90177]
[1756346809702,0.9499,4526.1,4526.0,3.2078]
[1756346810203,0.9499,4526.1,4526.0,4.8687]
[1756346810403,0.9499,4526.3,4526.2,0.39765]
[1756346810606,21.2409,4526.3,4526.2,0.39765]
[1756346810806,21.2409,4526.3,4526.2,1.44955]
[1756346811007,21.2409,4526.3,4526.2,2.05855]
[1756346811401,21.2409,4526.3,4526.2,1.06115]
[1756346811604,21.2409,4526.3,4526.2,1.64525]
[1756346812106,21.2409,4526.3,4526.2,0.39765]
[1756346812499,21.2409,4526.3,4526.2,1.64525]
[1756346812698,21.2409,4526.3,4526.2,2.05855]
[1756346813400,21.2409,4526.3,4526.2,1.64525]
[1756346814203,21.2409,4526.3,4526.2,1.35745]
[1756346814708,21.2409,4526.3,4526.2,0.39765]
[1756346814906,20.6706,4526.3,4526.0,3.60547]
[1756346815108,0.9499,4526.1,4526.0,3.60547]
[1756346816207,0.9499,4526.1,4526.0,5.26637]
[1756346816705,0.9499,4526.1,4526.0,4.85307]
[1756346816910,0.9499,4526.1,4526.0,4.56527]
[1756346817410,0.9499,4526.1,4526.0,4.85307]
[1756346817909,0.9499,4526.1,4526.0,5.26637]
[1756346819609,0.3796,4526.1,4526.0,5.26637]
[1756346820210,20.5569,4526.3,4526.1,0.39766]
[1756346820402,20.4817,4526.3,4526.2,1.6609]
[1756346820808,20.6706,4526.3,4526.2,1.6609]
[1756346821113,20.9365,4526.3,4526.2,1.6609]
[1756346821517,21.2409,4526.3,4526.0,3.2078]
[1756346821707,20.6706,4526.3,4526.0,3.87947]
[1756346821906,20.6706,4526.3,4526.1,1.6913]
[1756346821907,0.9495,4526.2,4526.1,1.6913]
[1756346823814,0.9495,4526.1,4526.0,4.99657]
[1756346824015,0.9495,4526.1,4526.0,5.29677]
[1756346827217,0.6618,4526.1,4526.0,5.29677]
[1756346830020,0.3966,4526.1,4526.0,5.29677]
[1756346830221,0.00384084,4526.3,4526.2,2.08895]
[1756346830519,0.9609,4527.3,4527.2,1.6913]
[1756346830714,20.6632,4527.3,4527.2,1.6913]
[1756346831516,3.2078,4527.8,4527.7,0.4773]
[1756346831712,3.8745,4528.3,4528.2,1.6913]
[1756346831912,24.4257,4528.3,4528.2,1.6913]
[1756346832315,0.5578,4528.2,4527.9,0.7214]
[1756346832512,0.3966,4528.1,4528.0,1.2652]
[1756346832710,31.826,4528.4,4528.1,0.5955]
[1756346832919,32.4992,4528.4,4528.3,1.6913]
[1756346833121,2.77644081,4531.1,4528.3,1.6913]
[1756346833122,3.2078,4529.3,4528.3,1.6913]
[1756346833416,4.0799,4529.2,4529.1,1.2652]
[1756346833723,4.3459,4529.2,4529.1,1.2652]
[1756346834015,0.2877,4529.1,4529.0,0.6697]
[1756346834223,0.266,4528.9,4528.1,0.2953]
[1756346834414,0.6732,4527.8,4527.7,0.965]
[1756346834616,20.32,4527.8,4527.7,0.965]
[1756346834923,20.32,4527.8,4527.7,1.6913]
[1756346835617,20.7207,4527.8,4527.7,1.68078261]
[1756346835818,21.2809,4527.8,4527.7,0.2771]
[1756346836021,21.2809,4527.8,4527.3,0.2771]
[1756346836022,0.9609,4527.4,4527.3,0.2771]
[1756346836322,0.6732,4527.4,4527.3,1.6913]
[1756346836523,0.9609,4527.4,4527.3,1.6913]
[1756346836727,0.4031,4527.4,4527.0,0.2953]
[1756346836923,0.9609,4527.1,4527.0,0.2953]
[1756346837117,0.9609,4527.1,4527.0,0.965]
[1756346837525,0.9609,4526.9,4526.8,1.6913]
[1756346838428,0.6732,4526.9,4526.8,1.6913]
[1756346838629,0.3966,4526.9,4526.8,1.6913]
[1756346838827,3.3998,4527.3,4527.2,1.6913]
[1756346839129,24.2,4527.3,4527.2,1.6913]
[1756346839324,24.4877,4527.3,4527.2,0.1924]
[1756346839520,23.9299,4527.3,4527.2,0.6697]
[1756346839722,23.9299,4527.3,4527.2,1.6913]
[1756346840122,24.2,4527.3,4527.2,1.6913]
[1756346840323,24.4877,4527.3,4527.2,1.6913]
[1756346840924,24.2,4527.3,4527.2,1.6913]
[1756346841124,20.7156,4527.3,4527.2,1.6913]
[1756346841530,20.9922,4527.3,4527.2,1.6913]
[1756346841833,21.2799,4527.3,4527.2,1.6913]
[1756346842527,21.2799,4527.3,4527.2,1.2652]
[1756346843425,20.9922,4527.3,4527.2,1.6913]
[1756346844633,21.2799,4527.3,4527.2,1.6913]
[1756346845332,20.319,4527.3,4527.2,1.6913]
[1756346845520,20.7156,4527.3,4527.2,1.6913]
[1756346845724,21.2799,4527.3,4527.2,1.6913]
[1756346847626,0.4797,4527.6,4527.5,0.39754]
[1756346847831,20.305,4527.6,4527.5,1.6913]
[1756346848230,21.2659,4527.6,4527.5,1.6913]
[1756346849639,0.9609,4527.3,4527.2,1.2652]
[1756346850833,0.9609,4527.3,4527.2,1.6913]
[1756346851034,0.6667,4527.3,4527.2,1.6913]
[1756346851436,0.6732,4527.3,4527.2,1.6913]
[1756346851636,0.9609,4527.3,4527.2,1.6913]
[1756346852736,0.9609,4527.3,4527.2,0.2771]
[1756346852939,0.9609,4527.3,4527.2,1.2431]
[1756346853230,20.6827,4527.3,4527.2,1.6668]
[1756346853436,20.9522,4527.3,4527.2,1.6668]
[1756346854036,20.6786,4527.3,4527.2,1.6668]
[1756346854243,20.291,4527.3,4527.2,1.6668]
[1756346857635,0.9479,4528.4,4528.3,0.6585]
[1756346858229,0.9479,4528.4,4528.3,0.9402]
[1756346858429,0.9479,4528.4,4528.3,1.6512]
[1756346858631,20.284,4528.5,4528.4,0.39746]
[1756346858837,20.284,4528.5,4528.4,2.04866]
[1756346859138,20.6744,4528.5,4528.4,2.04866]
[1756346859335,20.4806,4528.5,4528.4,2.04866]
[1756346859538,20.284,4528.5,4528.4,5.25646]
[1756346860639,20.4806,4528.5,4528.4,5.25646]
[1756346860838,21.2319,4528.5,4528.4,5.25646]
[1756346861743,21.2319,4528.5,4528.4,3.2078]